bitfinex-derivatives/quotes_ETHF0:USTF0_20250410
["timestamp","ask_amount","ask_price","bid_price","bid_amount"]
[1744266305548,11.11034,1615.9,1615.8,45.8]
[1744266306640,6.11034,1615.9,1615.8,45.8]
[1744266306841,10.24884,1615.9,1615.8,45.8]
[1744266307747,10.24884,1615.9,1615.8,47.4176]
[1744266310646,18.41845995,1615.9,1615.8,47.4176]
[1744266312743,14.27995995,1615.9,1615.8,47.4176]
[1744266313241,14.27995995,1615.9,1615.8,45.8]
[1744266313651,14.27995995,1615.9,1615.8,5.0]
[1744266313952,19.27995995,1615.9,1615.8,5.0]
[1744266314149,14.27995995,1615.9,1615.8,5.0]
[1744266314351,19.27995995,1615.9,1615.8,5.0]
[1744266314754,12.03916912,1615.9,1615.8,5.0]
[1744266315053,7.03916912,1615.9,1615.8,5.0]
[1744266315951,16.17766912,1615.9,1615.8,4.6382]
[1744266316644,16.17766912,1615.9,1615.8,4.1668]
[1744266316844,16.17766912,1615.9,1615.8,3.3373]
[1744266317150,16.17766912,1615.9,1615.8,0.24071121]
[1744266317550,18.03474912,1615.9,1615.5,0.00928678]
[1744266317750,4.44607,1615.6,1615.5,0.00928678]
[1744266318254,9.44607,1615.6,1615.5,0.00928678]
[1744266318851,12.06577,1615.6,1615.5,0.00928678]
[1744266319555,12.06577,1615.6,1615.5,5.00928678]
[1744266319754,7.06577,1615.6,1615.5,5.00928678]
[1744266321557,11.20427,1615.6,1615.5,5.00928678]
[1744266322157,38.26471684,1615.6,1615.5,5.00928678]
[1744266322357,38.26471684,1615.6,1615.5,6.64438678]
[1744266322655,39.90241684,1615.6,1615.5,6.64438678]
[1744266323157,39.90241684,1615.6,1615.5,5.00928678]
[1744266325659,39.90241684,1615.6,1615.5,3.56988678]
[1744266326356,1.2385,1615.3,1615.2,40.8]
[1744266326552,1.23858,1615.2,1615.1,1.5893]
[1744266326751,2.25278,1615.2,1615.1,1.5893]
[1744266326953,3.81698,1615.2,1615.1,1.5893]
[1744266327659,3.81698,1615.2,1615.1,6.5893]
[1744266327960,2.25278,1615.2,1615.1,6.5893]
[1744266329462,1.23858,1615.2,1615.1,6.5893]
[1744266329860,1.23858,1615.2,1615.1,7.82796]
[1744266330060,3.2078,1615.3,1615.2,1.23858]
[1744266330359,3.2078,1615.3,1615.2,2.78748]
[1744266330561,3.2078,1615.3,1615.2,48.58748]
[1744266331670,4.4463,1615.3,1615.2,53.58748]
[1744266332063,4.4463,1615.3,1615.2,58.58748]
[1744266332268,3.2078,1615.3,1615.2,58.58748]
[1744266333668,3.2078,1615.3,1615.2,53.58748]
[1744266333963,4.4463,1615.3,1615.2,53.58748]
[1744266334271,4.4463,1615.3,1615.2,52.3489]
[1744266334465,4.4463,1615.3,1615.2,53.58748]
[1744266335069,3.2078,1615.3,1615.2,53.58748]
[1744266336967,3.2078,1615.3,1615.2,58.58748]
[1744266337469,3.2078,1615.3,1615.2,63.13148]
[1744266341574,3.2078,1615.3,1615.2,58.58748]
[1744266343475,3.2078,1615.5,1615.4,1.23843]
[1744266343776,7.24352264,1615.6,1615.5,1.23835]
[1744266344075,7.24352264,1615.6,1615.5,2.92075]
[1744266344271,7.24352264,1615.6,1615.5,7.92075]
[1744266344677,7.24352264,1615.6,1615.5,2.92075]
[1744266345180,7.24352264,1615.6,1615.5,7.92075]
[1744266345882,7.24352264,1615.6,1615.5,12.92075]
[1744266349589,3.2078,1615.7,1615.6,1.23827]
[1744266349774,4.446,1615.7,1615.6,2.86667]
[1744266349972,4.446,1615.7,1615.6,1.6284]
[1744266350175,6.006,1615.7,1615.6,1.6284]
[1744266350375,6.006,1615.7,1615.6,2.86667]
[1744266350875,6.006,1615.7,1615.6,1.6284]
[1744266351380,6.006,1615.7,1615.6,2.86667]
[1744266351586,3.2078,1615.7,1615.6,7.86667]
[1744266352188,4.446,1615.7,1615.6,12.86667]
[1744266352686,3.2078,1615.7,1615.6,12.86667]
[1744266353682,4.446,1615.7,1615.6,12.86667]
[1744266353986,12.61838679,1615.7,1615.6,11.6284]
[1744266354186,15.47778679,1615.7,1615.6,11.6284]
[1744266354482,15.47778679,1615.7,1615.6,12.86667]
[1744266354687,15.47778679,1615.7,1615.6,11.6284]
[1744266354885,15.47778679,1615.7,1615.6,10.0]
[1744266355576,15.47778679,1615.7,1615.6,5.0]
[1744266358288,8.23426415,1615.7,1615.6,5.0]
[1744266359288,4.13666415,1615.7,1615.6,12.84737]
[1744266359792,5.37486415,1615.7,1615.6,12.84737]
[1744266360188,5.37486415,1615.7,1615.6,10.0]
[1744266360386,6.99816415,1615.7,1615.6,10.0]
[1744266362684,6.99816415,1615.7,1615.6,11.23827]
[1744266363001,5.37486415,1615.7,1615.6,11.23827]
[1744266363188,5.37486415,1615.7,1615.6,10.0]
[1744266363386,5.37486415,1615.7,1615.6,11.23827]
[1744266363586,4.13666415,1615.7,1615.6,12.83177]
[1744266364489,4.13666415,1615.7,1615.6,14.06957]
[1744266366190,4.13666415,1615.7,1615.6,18.50357]
[1744266366799,4.13666415,1615.7,1615.6,23.50357]
[1744266368504,8.0370812,1615.7,1615.6,23.50357]
[1744266369795,8.0370812,1615.7,1615.6,18.50357]
[1744266373096,8.0370812,1615.7,1615.6,23.50357]
[1744266373795,3.2078,1615.7,1615.6,23.50357]
[1744266375706,3.2078,1615.7,1615.6,18.50357]
[1744266383112,3.2078,1615.7,1615.6,24.49957]
[1744266384614,3.2078,1615.7,1615.6,18.50357]
[1744266387612,8.04636798,1616.0,1615.9,1.23804]
[1744266387807,8.04636798,1616.0,1615.9,5.58204]
[1744266388207,8.04636798,1616.0,1615.9,46.38204]
[1744266388515,8.04636798,1616.0,1615.9,47.92374]
[1744266388716,8.04636798,1616.0,1615.9,52.92374]
[1744266389310,8.04636798,1616.0,1615.9,59.21514]
[1744266392813,8.04636798,1616.0,1615.9,57.92374]
[1744266393018,6.10248678,1616.0,1615.9,57.92374]
[1744266394519,6.10248678,1616.0,1615.9,56.38204]
[1744266394717,12.34045678,1616.0,1615.9,52.03804]
[1744266398727,7.34045678,1616.0,1615.9,52.03804]
[1744266399023,6.10248678,1616.0,1615.9,52.03804]
[1744266399224,7.34045678,1616.0,1615.9,52.03804]
[1744266401216,8.26914351,1616.0,1615.9,52.03804]
[1744266401623,7.03117351,1616.0,1615.9,52.03804]
[1744266401917,8.26914351,1616.0,1615.9,52.03804]
[1744266402330,7.03117351,1616.0,1615.9,52.03804]
[1744266402830,8.26914351,1616.0,1615.9,52.03804]
[1744266404530,7.03117351,1616.0,1615.9,52.03804]
[1744266405126,14.27509532,1616.0,1615.9,52.03804]
[1744266405335,14.27509532,1616.0,1615.9,53.62074]
[1744266405634,15.51306532,1616.0,1615.9,53.62074]
[1744266407036,14.27509532,1616.0,1615.9,53.62074]
[1744266407238,15.51306532,1616.0,1615.9,53.62074]
[1744266407537,14.27509532,1616.0,1615.9,53.62074]
[1744266408239,11.38969532,1616.0,1615.9,53.62074]
[1744266408736,11.38969532,1616.0,1615.9,57.88974]
[1744266410328,14.17236532,1616.0,1615.9,57.88974]
[1744266410735,15.48966532,1616.0,1615.9,57.88974]
[1744266411539,14.25169532,1616.0,1615.9,57.88974]
[1744266411837,11.38969532,1616.0,1615.9,57.88974]
[1744266412334,12.62766532,1616.0,1615.9,57.88974]
[1744266412535,11.38969532,1616.0,1615.9,57.88974]
[1744266413932,12.62766532,1616.0,1615.9,57.88974]
[1744266414137,17.62766532,1616.0,1615.9,50.8]
[1744266414440,20.42166532,1616.0,1615.9,10.0]
[1744266415239,1.23827,1615.6,1615.5,40.8]
[1744266415440,4.44607,1615.6,1615.5,40.8]
[1744266415640,9.44607,1615.6,1615.5,40.8]
[1744266415936,11.00447,1615.6,1615.5,40.8]
[1744266417239,11.51213784,1615.6,1615.5,40.8]
[1744266417441,1.23835,1615.5,1615.4,9.69568058]
[1744266417633,2.79675,1615.5,1615.4,9.69568058]
[1744266417839,7.79675,1615.5,1615.4,9.69568058]
[1744266418035,7.79675,1615.5,1615.4,8.42398058]
[1744266418238,1.23843,1615.4,1615.3,14.44228842]
[1744266418449,7.06173,1615.4,1615.3,14.44228842]
[1744266418743,12.06173,1615.4,1615.3,14.44228842]
[1744266418945,12.06173,1615.4,1615.3,13.71668843]
[1744266419245,12.06173,1615.4,1615.3,7.52535135]
[1744266419545,12.06173,1615.4,1615.3,6.19133709]
[1744266420044,1.23866,1615.1,1615.0,0.00928678]
[1744266420243,8.71646,1615.1,1615.0,0.00928678]
[1744266420546,13.71646,1615.1,1615.0,0.00928678]
[1744266420837,13.71646,1615.1,1615.0,3.73187678]
[1744266421038,1.23889,1614.8,1614.7,9.72510723]
[1744266421244,8.71669,1614.8,1614.7,9.72510723]
[1744266421448,13.71669,1614.8,1614.7,9.72510723]
[1744266422244,8.71669,1614.8,1614.7,9.72510723]
[1744266423447,13.71669,1614.8,1614.7,9.72510723]
[1744266424243,13.71669,1614.8,1614.7,8.92560723]
[1744266425250,13.71669,1614.8,1614.7,8.25560723]
[1744266425750,1.23896,1614.7,1614.6,0.00928678]
[1744266425951,7.15356,1614.7,1614.6,0.00928678]
[1744266427450,8.43316,1614.7,1614.6,5.00928678]
[1744266428439,7.15356,1614.7,1614.6,5.00928678]
[1744266429649,1.23896,1614.7,1614.6,5.00928678]
[1744266430039,1.23896,1614.7,1614.6,6.68558678]
[1744266431957,1.23896,1614.7,1614.6,10.61136733]
[1744266433255,1.23896,1614.7,1614.6,6.68558678]
[1744266433456,2.77356,1614.7,1614.6,6.68558678]
[1744266433658,2.77356,1614.7,1614.6,5.00928678]
[1744266434056,2.77356,1614.7,1614.6,6.54688678]
[1744266436054,1.23896,1614.7,1614.6,6.54688678]
[1744266437557,4.44676,1614.7,1614.6,6.54688678]
[1744266438255,6.09436,1614.7,1614.6,6.54688678]
[1744266442858,1.23904,1614.6,1614.5,1.3138]
[1744266444667,1.23904,1614.6,1614.5,6.3138]
[1744266444868,7.07304,1614.6,1614.5,6.3138]
[1744266445072,1.23912,1614.5,1614.4,0.00928678]
[1744266445261,11.54232,1614.5,1614.4,0.00928678]
[1744266445457,16.54232,1614.5,1614.4,6.78e-06]
[1744266445664,1.2395,1614.0,1613.9,2.6152]
[1744266445864,8.7063,1614.0,1613.9,2.6152]
[1744266446069,1.23988,1613.6,1613.5,40.8]
[1744266446264,4.44768,1613.6,1613.5,42.0513]
[1744266446567,4.44768,1613.6,1613.5,45.97708055]
[1744266447070,4.44768,1613.6,1613.5,47.61228055]
[1744266447673,3.2078,1613.6,1613.5,52.61228055]
[1744266447863,4.44761,1613.6,1613.5,52.61228055]
[1744266448171,4.44761,1613.6,1613.5,57.61228055]
[1744266448365,3.2078,1613.6,1613.5,58.85216055]
[1744266448566,3.2078,1613.6,1613.5,57.61228055]
[1744266448769,3.2078,1613.6,1613.5,58.85216055]
[1744266449472,3.2078,1613.6,1613.5,57.61228055]
[1744266449664,4.44761,1613.6,1613.5,52.61228055]
[1744266450368,10.28161,1613.6,1613.5,5.0]
[1744266450572,11.87861,1613.6,1613.5,5.0]
[1744266450767,1.24004,1613.3,1613.2,4.1764]
[1744266450972,8.70784,1613.3,1613.2,4.1764]
[1744266451273,8.70784,1613.3,1613.2,8.10218055]
[1744266451669,14.54184,1613.3,1613.2,8.10218055]
[1744266452066,14.54184,1613.3,1613.2,4.1764]
[1744266452766,14.54184,1613.3,1613.2,9.1764]
[1744266453468,14.54184,1613.3,1613.2,13.10218055]
[1744266454477,14.54184,1613.3,1613.2,5.0]
[1744266456074,1.24019,1613.1,1613.0,1.643]
[1744266456283,10.28199,1613.1,1613.0,5.56878055]
[1744266457679,10.28199,1613.1,1613.0,10.56878055]
[1744266457974,10.28199,1613.1,1613.0,8.92578055]
[1744266458180,10.28199,1613.1,1613.0,4.99346622]
[1744266459397,10.28199,1613.1,1613.0,9.99346622]
[1744266462490,10.28199,1613.1,1613.0,11.25646622]
[1744266465398,14.51199,1613.1,1613.0,11.25646622]
[1744266467203,13.2718,1613.1,1613.0,12.49673622]
[1744266467501,10.28199,1613.1,1613.0,11.25646622]
[1744266468102,4.44799,1613.1,1613.0,11.25646622]
[1744266469090,11.85249,1613.1,1613.0,5.0]
[1744266469296,1.2405,1612.7,1612.6,1.3063]
[1744266469500,1.2407,1612.5,1612.3,48.36496622]
[1744266469693,1.2407,1612.5,1612.4,1.6946]
[1744266469893,4.4485,1612.5,1612.4,5.03806622]
[1744266470094,10.2825,1612.5,1612.4,3.34346622]
[1744266470299,9.0418,1612.5,1612.0,4.0964]
[1744266470593,1.24095,1612.2,1612.1,1.5516]
[1744266470800,4.44875,1612.2,1612.1,45.69506622]
[1744266471299,14.0418,1612.2,1611.3,3.2078]
[1744266471502,3.2078,1611.8,1611.7,2.5448]
[1744266471803,3.2078,1611.8,1611.7,46.13767]
[1744266471998,0.00928678,1611.9,1611.8,1.24119]
[1744266472192,0.00928678,1611.9,1611.8,6.13625622]
[1744266472397,0.00928678,1611.9,1611.8,11.13625622]
[1744266472605,0.00928678,1611.9,1611.8,16.13625622]
[1744266473905,0.00928678,1611.9,1611.8,21.13625622]
[1744266478096,1.25039678,1611.9,1611.8,14.89506622]
[1744266479107,8.62319678,1611.9,1611.8,14.89506622]
[1744266479310,8.62319678,1611.9,1611.8,13.34346622]
[1744266479500,8.62319678,1611.9,1611.8,8.34346622]
[1744266480002,7.08439678,1611.9,1611.8,9.98516622]
[1744266481801,5.84328678,1611.9,1611.8,11.22635622]
[1744266482410,7.08439678,1611.9,1611.8,9.98516622]
[1744266482912,7.08439678,1611.9,1611.8,8.34346622]
[1744266483108,9.93999678,1611.9,1611.8,8.34346622]
[1744266483309,9.93999678,1611.9,1610.9,3.10453]
[1744266483310,1.24153,1611.4,1610.9,3.10453]
[1744266483609,3.2078,1611.4,1611.2,1.6033]
[1744266483806,3.2078,1611.4,1611.3,42.1202]
[1744266484006,3.2078,1611.4,1611.3,45.46366622]
[1744266484212,3.2078,1611.4,1611.3,48.30854622]
[1744266484711,4.4493,1611.4,1611.3,47.06696622]
[1744266484911,4.4493,1611.4,1611.3,45.38504622]
[1744266485110,4.4493,1611.4,1611.3,44.14346622]
[1744266485708,3.2078,1611.4,1611.3,50.38504622]
[1744266485910,3.2078,1611.4,1611.3,50.80556622]
[1744266485911,4.4493,1611.4,1611.3,50.80556622]
[1744266487214,14.5163,1611.4,1611.3,5.0]
[1744266487517,19.5163,1611.4,1611.3,5.0]
[1744266487815,21.1287,1611.4,1611.3,5.0]
[1744266488019,11.8957,1611.4,1611.3,5.0]
[1744266488318,16.1287,1611.4,1611.3,5.0]
[1744266488510,11.8957,1611.4,1611.3,5.0]
[1744266488812,1.24166,1611.2,1611.0,2.90389]
[1744266489016,1.24166,1611.2,1611.1,4.94966622]
[1744266489314,3.2078,1611.2,1611.1,4.94966622]
[1744266489518,4.44945,1611.2,1611.1,9.94966622]
[1744266489816,3.2078,1611.2,1611.1,9.94966622]
[1744266490008,4.44945,1611.2,1611.1,9.94966622]
[1744266491517,11.88525,1611.2,1611.1,9.94966622]
[1744266493019,10.28345,1611.2,1611.1,9.94966622]
[1744266496223,9.0418,1611.2,1611.1,9.94966622]
[1744266496423,10.28345,1611.2,1611.1,9.94966622]
[1744266497224,10.28345,1611.2,1611.1,14.94966622]
[1744266497422,4.44945,1611.2,1611.1,14.94966622]
[1744266498418,4.44945,1611.2,1611.1,16.24586622]
[1744266499325,1.24164,1611.3,1611.1,17.48759622]
[1744266499525,1.43607034,1611.6,1611.4,1.24145]
[1744266499823,5.88522034,1611.6,1611.5,4.1878]
[1744266500025,7.46982034,1611.6,1611.5,44.9878]
[1744266500223,5.88522034,1611.6,1611.5,44.9878]
[1744266500829,5.88522034,1611.6,1611.5,49.9878]
[1744266501520,5.88522034,1611.6,1611.5,54.9878]
[1744266503127,4.44915,1611.6,1611.5,54.9878]
[1744266504029,6.05155,1611.6,1611.5,54.9878]
[1744266504424,6.05155,1611.6,1611.5,50.8]
[1744266505832,6.05155,1611.6,1611.5,52.0791]
[1744266506032,4.44915,1611.6,1611.5,53.7566]
[1744266506533,4.44915,1611.6,1611.5,50.8]
[1744266506534,10.35695,1611.6,1611.5,50.8]
[1744266507029,10.35695,1611.6,1611.5,10.0]
[1744266507634,15.35695,1611.6,1611.5,10.0]
[1744266507932,21.19095,1611.6,1611.5,10.0]
[1744266508135,21.19095,1611.6,1611.5,5.0]
[1744266508732,16.19095,1611.6,1611.5,5.0]
[1744266509228,21.19095,1611.6,1611.5,5.0]
[1744266509433,21.19095,1611.6,1611.5,4.6669]
[1744266509936,21.19095,1611.6,1611.5,4.2212]
[1744266510431,21.19095,1611.6,1611.5,2.94926]
[1744266510631,21.19095,1611.6,1611.5,1.63991]
[1744266510840,1.24188,1610.9,1610.8,1.1936]
[1744266511035,4.44968,1610.9,1610.8,43.6236]
[1744266511235,3.2078,1610.9,1610.8,49.86556]
[1744266511434,0.00928678,1611.0,1610.8,49.86556]
[1744266511632,0.00928678,1611.0,1610.9,2.87188]
[1744266512030,0.00928678,1611.0,1610.9,7.87188]
[1744266512628,5.834,1611.2,1610.9,47.43]
[1744266512841,3.2078,1611.3,1611.0,1.6655]
[1744266513139,3.2078,1611.3,1611.2,1.24165]
[1744266513338,1.24149,1611.5,1611.1,4.4415]
[1744266513535,1.24149,1611.5,1611.3,1.24156]
[1744266513741,1.25077678,1611.5,1611.4,1.6655]
[1744266514848,0.00928678,1611.5,1611.4,2.907]
[1744266515249,0.00928678,1611.5,1611.4,8.3705]
[1744266515448,1.25070678,1611.5,1611.4,7.129]
[1744266515651,1.25070678,1611.5,1611.4,12.129]
[1744266515947,0.00928678,1611.5,1611.4,13.3705]
[1744266516148,1.25070678,1611.5,1611.4,12.129]
[1744266516857,0.00928678,1611.5,1611.4,13.3705]
[1744266517351,1.25070678,1611.5,1611.4,12.129]
[1744266517554,1.25070678,1611.5,1611.4,13.3705]
[1744266517852,0.00928678,1611.5,1611.4,13.3705]
[1744266518055,1.25070678,1611.5,1611.4,12.129]
[1744266518247,1.25070678,1611.5,1611.4,13.3705]
[1744266518446,1.25070678,1611.5,1611.4,12.129]
[1744266518647,1.25070678,1611.5,1611.4,13.3705]
[1744266518857,1.25070678,1611.5,1611.4,7.78289603]
[1744266519457,0.00928678,1611.5,1611.4,7.78289603]
[1744266519651,1.25070678,1611.5,1611.4,8.99629603]
[1744266520150,0.00928678,1611.5,1611.4,8.99629603]
[1744266520352,4.45850678,1611.5,1611.4,7.75479603]
[1744266520551,3.21708678,1611.5,1611.4,8.99629603]
[1744266520756,4.45850678,1611.5,1611.4,7.75479603]
[1744266521054,4.45850678,1611.5,1611.4,8.99629603]
[1744266521461,3.21708678,1611.5,1611.4,8.99629603]
[1744266521753,4.45850678,1611.5,1611.4,8.99629603]
[1744266521960,4.45850678,1611.5,1611.4,9.41569603]
[1744266522151,3.21708678,1611.5,1611.4,10.65719603]
[1744266522751,4.45850678,1611.5,1611.4,9.41569603]
[1744266523153,4.45850678,1611.5,1611.4,10.65719603]
[1744266523866,3.21708678,1611.5,1611.4,10.65719603]
[1744266524159,0.00928678,1611.5,1611.4,10.65719603]
[1744266526655,0.94054692,1611.5,1611.4,10.65719603]
[1744266529670,1.83531176,1611.6,1611.5,1.24142]
[1744266529858,1.83531176,1611.6,1611.5,6.09792]
[1744266530058,9.66247327,1611.9,1611.8,1.24119]
[1744266530266,9.66247327,1611.9,1611.8,42.04119]
[1744266530965,9.66247327,1611.9,1611.8,45.15489]
[1744266531362,12.53368327,1611.9,1611.8,50.15489]
[1744266531562,11.29257327,1611.9,1611.8,50.15489]
[1744266532070,9.66247327,1611.9,1611.8,50.15489]
[1744266533254,9.66247327,1611.9,1611.8,51.40869]
[1744266533863,9.66247327,1611.9,1611.8,56.40869]
[1744266534162,9.66247327,1611.9,1611.8,51.40869]
[1744266534770,9.66247327,1611.9,1611.8,51.88133584]
[1744266535063,9.66247327,1611.9,1611.8,51.40869]
[1744266535262,10.90358327,1611.9,1611.8,51.40869]
[1744266535461,10.90358327,1611.9,1611.8,47.3413]
[1744266535661,13.70578327,1611.9,1611.8,48.58249]
[1744266535867,4.04331,1611.9,1611.8,47.3413]
[1744266536069,10.27531,1611.9,1611.8,47.3413]
[1744266536267,2.8022,1611.9,1611.8,47.3413]
[1744266536470,2.8022,1611.9,1611.8,48.58249]
[1744266536969,2.8022,1611.9,1611.8,43.58249]
[1744266537470,4.04331,1611.9,1611.8,43.58249]
[1744266537670,2.8022,1611.9,1611.8,43.58249]
[1744266538967,4.04331,1611.9,1611.8,42.3413]
[1744266540075,9.04331,1611.9,1611.8,42.3413]
[1744266540281,9.04331,1611.9,1611.8,43.58249]
[1744266540577,4.04331,1611.9,1611.8,42.3413]
[1744266540769,9.04331,1611.9,1611.8,42.3413]
[1744266540968,2.8022,1611.9,1611.8,43.58249]
[1744266541678,2.8022,1611.9,1611.8,44.70959]
[1744266542975,4.04331,1611.9,1611.8,43.4684]
[1744266543579,2.8022,1611.9,1611.8,44.70959]
[1744266543783,4.04331,1611.9,1611.8,42.3413]
[1744266544476,14.87731,1611.9,1611.8,1.5413]
[1744266545175,1.24148,1611.5,1611.3,41.9264]
[1744266545369,1.24148,1611.5,1611.4,1.2415]
[1744266545370,3.2078,1611.5,1611.4,1.2415]
[1744266545570,4.44924,1611.5,1611.4,5.0]
[1744266545778,7.18554,1611.5,1611.4,5.0]
[1744266545977,8.31654,1611.5,1611.4,5.0]
[1744266546567,8.31654,1611.5,1611.4,6.0]
[1744266547479,8.31654,1611.5,1611.4,1.0]
[1744266547982,5.9441,1611.5,1611.4,1.0]
[1744266548177,1.601,1611.5,1611.4,2.2415]
[1744266548384,5.834,1611.6,1611.5,1.24142]
[1744266548681,5.834,1611.6,1611.5,2.86852]
[1744266549280,5.834,1611.6,1611.5,7.86852]
[1744266549782,8.72625,1611.6,1611.5,6.0]
[1744266550175,1.6509,1611.6,1611.5,7.24142]
[1744266550375,2.89225,1611.6,1611.5,6.0]
[1744266550569,1.6509,1611.6,1611.5,7.24142]
[1744266550779,2.89225,1611.6,1611.5,6.0]
[1744266552384,1.6509,1611.6,1611.5,7.24142]
[1744266552578,2.89225,1611.6,1611.5,6.0]
[1744266552778,2.89225,1611.6,1611.5,7.24142]
[1744266552979,2.89225,1611.6,1611.5,6.0]
[1744266554282,4.08065,1611.6,1611.5,6.0]
[1744266554488,13.30665,1611.6,1611.5,6.0]
[1744266554786,13.30665,1611.6,1611.5,1.0]
[1744266554986,8.30665,1611.6,1611.5,1.0]
[1744266555284,4.08065,1611.6,1611.5,1.0]
[1744266555484,8.30665,1611.6,1611.5,1.0]
[1744266555990,14.14065,1611.6,1611.5,1.0]
[1744266556187,9.91465,1611.6,1611.5,1.0]
[1744266557077,8.72625,1611.6,1611.5,1.0]
[1744266558079,14.65754092,1611.6,1611.5,1.0]
[1744266558281,9.65754092,1611.6,1611.5,1.0]
[1744266558486,14.65754092,1611.6,1611.5,1.0]
[1744266560688,9.65754092,1611.6,1611.5,1.0]
[1744266562581,14.65754092,1611.6,1611.5,1.0]
[1744266563688,9.65754092,1611.6,1611.5,1.0]
[1744266565588,14.65754092,1611.6,1611.5,1.0]
[1744266565889,1.24165,1611.2,1611.1,0.00928678]
[1744266566088,4.44945,1611.2,1611.1,1.17338678]
[1744266566482,11.85575,1611.2,1611.1,1.17338678]
[1744266567688,11.85575,1611.2,1611.1,2.34918678]
[1744266567889,13.02755,1611.2,1611.1,1.17338678]
[1744266569086,11.85575,1611.2,1611.1,1.17338678]
[1744266569391,11.85575,1611.2,1611.1,2.34918678]
[1744266569589,11.85575,1611.2,1611.1,3.92298678]
[1744266570183,12.78704092,1611.2,1611.1,3.92298678]
[1744266570490,11.21474092,1611.2,1611.1,3.92298678]
[1744266570789,4.13909092,1611.2,1611.1,10.16471678]
[1744266571183,4.13909092,1611.2,1611.1,15.16471678]
[1744266572591,5.38074092,1611.2,1611.1,15.16471678]
[1744266572790,4.13909092,1611.2,1611.1,15.16471678]
[1744266573192,5.38074092,1611.2,1611.1,10.16471678]
[1744266573493,5.38074092,1611.2,1611.1,50.96471678]
[1744266573993,4.44945,1611.2,1611.1,50.96471678]
[1744266575988,3.2078,1611.2,1611.1,55.96471678]
[1744266576186,3.2078,1611.2,1611.1,50.96471678]
[1744266576387,3.2078,1611.5,1611.4,1.24149]
[1744266576692,4.44929,1611.5,1611.3,1.24153]
[1744266576880,1.24149,1611.5,1611.4,4.1179]
[1744266577083,4.44929,1611.5,1611.4,2.8764]
[1744266577285,3.2078,1611.5,1611.4,4.1179]
[1744266577792,1.24136,1611.6,1611.4,2.8764]
[1744266577990,1.24136,1611.6,1611.5,2.8902]
[1744266578188,1.24136,1611.6,1611.5,4.13157]
[1744266578890,12.87027327,1611.7,1611.6,1.24135]
[1744266579189,12.87027327,1611.7,1611.6,2.83745]
[1744266580191,12.87027327,1611.7,1611.6,7.83745]
[1744266580390,3.2078,1611.7,1611.6,7.83745]
[1744266581493,1.24115,1611.9,1611.8,1.24119]
[1744266581682,14.12065005,1612.0,1611.9,1.24111]
[1744266582484,14.12065005,1612.0,1611.9,1.6019]
[1744266582688,14.45356005,1612.0,1611.9,2.84301]
[1744266583000,12.87956005,1612.0,1611.9,2.84301]
[1744266584590,12.87956005,1612.0,1611.9,7.84301]
[1744266585095,4.14813342,1612.0,1611.9,7.84301]
[1744266585396,5.38917342,1612.0,1611.9,7.84301]
[1744266585599,4.14813342,1612.0,1611.9,7.84301]
[1744266585985,0.94033342,1612.0,1611.9,7.84301]
[1744266588500,5.38917342,1612.0,1611.9,7.84301]
[1744266588699,6.97507342,1612.0,1611.9,7.84301]
[1744266589091,6.04402678,1612.0,1611.9,7.84301]
[1744266589801,0.00928678,1612.0,1611.9,7.84301]
[1744266590001,3.21708678,1612.0,1611.9,7.84301]
[1744266590806,4.45812678,1612.0,1611.9,7.84301]
[1744266591100,6.04402678,1612.0,1611.9,7.84301]
[1744266591702,4.80298678,1612.0,1611.9,7.84301]
[1744266593004,6.04402678,1612.0,1611.9,5.0]
[1744266593199,6.04402678,1612.0,1611.9,6.24111]
[1744266593402,4.80298678,1612.0,1611.9,6.24111]
[1744266593601,0.00928678,1612.0,1611.9,6.24111]
[1744266593807,0.00928678,1612.0,1611.9,7.86521]
[1744266599610,1.6572,1612.3,1612.2,1.24088]
[1744266600000,1.6572,1612.3,1612.2,42.04088]
[1744266600203,7.21574002,1612.4,1612.3,1.24081]
[1744266600402,7.21574002,1612.4,1612.3,7.22401]
[1744266600601,7.21574002,1612.4,1612.3,12.22401]
[1744266600803,7.21574002,1612.4,1612.3,2.48271]
[1744266601316,7.21574002,1612.4,1612.3,4.04371]
[1744266602012,7.21574002,1612.4,1612.3,9.04371]
[1744266602212,7.21574002,1612.4,1612.3,13.26571]
[1744266602408,7.21574002,1612.4,1612.3,21.47351]
[1744266602622,7.21574002,1612.4,1612.3,17.25151]
[1744266602918,7.21574002,1612.4,1612.3,14.04371]
[1744266603316,7.21574002,1612.4,1612.3,9.04371]
[1744266604020,8.83704002,1612.4,1612.3,7.48271]
[1744266604213,8.83704002,1612.4,1612.3,6.24081]
[1744266604214,10.07777002,1612.4,1612.3,6.24081]
[1744266604521,8.83704002,1612.4,1612.3,6.24081]
[1744266606919,8.83704002,1612.4,1612.3,7.80441]
[1744266607120,7.21574002,1612.4,1612.3,7.80441]
[1744266608124,7.21574002,1612.4,1612.3,11.01221]
[1744266609224,7.21574002,1612.4,1612.3,16.01221]
[1744266610414,5.82427002,1612.4,1612.3,16.01221]
[1744266610620,3.5846268,1612.4,1612.3,16.63301]
[1744266610817,0.9587668,1612.4,1612.3,16.63301]
[1744266612023,0.00928678,1612.5,1612.4,1.24073]
[1744266612225,0.00928678,1612.5,1612.4,9.63753]
[1744266613017,1.65038678,1612.5,1612.4,9.63753]
[1744266613318,0.00928678,1612.5,1612.4,9.63753]
[1744266613720,0.00928678,1612.5,1612.4,14.63753]
[1744266614121,0.00928678,1612.5,1612.4,19.63753]
[1744266614826,0.00928678,1612.5,1612.4,14.63753]
[1744266615025,6.78e-06,1612.5,1612.4,19.63753]
[1744266615228,6.78e-06,1612.5,1612.4,20.14109334]
[1744266618832,6.78e-06,1612.5,1612.4,15.14109334]
[1744266619434,6.78e-06,1612.5,1612.4,14.63753]
[1744266620633,6.78e-06,1612.5,1612.4,20.63353]
[1744266621135,6.78e-06,1612.5,1612.4,21.12322959]
[1744266621332,1.6411,1612.9,1612.8,1.24042]